[Event "*** Titled Tuesday Blitz"]
[Site "Chess.com"]
[Date "2019.01.01"]
[Round "4"]
[White "Bigfish1995"]
[Black "1e41-0"]
[Result "1-0"]
[WhiteElo "2910"]
[BlackElo "2545"]
[TimeControl "180+2"]
[EndTime "13:57:07 PST"]
[Termination "Bigfish1995 won by resignation"]

1. d4 {[%clk 0:02:52.5]} 1... d5 {[%clk 0:02:59.8]} 2. Nf3 {[%clk 0:02:53.1]}
2... Bf5 {[%clk 0:03:00.3]} 3. Bf4 {[%clk 0:02:54.1]} 3... e6 {[%clk 0:03:01.2]}
4. Nbd2 {[%clk 0:02:54.1]} 4... Nf6 {[%clk 0:02:58.9]} 5. e3 {[%clk 0:02:54.7]}
5... Nbd7 {[%clk 0:02:58.5]} 6. h3 {[%clk 0:02:54.9]} 6... h6 {[%clk 0:02:56.9]}
7. c3 {[%clk 0:02:52.9]} 7... c6 {[%clk 0:02:55.9]} 8. Be2 {[%clk 0:02:52.2]}
8... Be7 {[%clk 0:02:57]} 9. O-O {[%clk 0:02:53]} 9... O-O {[%clk 0:02:57.6]}
10. Ne1 {[%clk 0:02:37.7]} 10... c5 {[%clk 0:02:43.5]} 11. Bd3 {[%clk
0:02:37.2]} 11... Bxd3 {[%clk 0:02:39]} 12. Nxd3 {[%clk 0:02:38]} 12... Qb6
{[%clk 0:02:38.7]} 13. Qb1 {[%clk 0:02:34.5]} 13... Rac8 {[%clk 0:02:31.8]} 14.
Re1 {[%clk 0:02:32]} 14... Rfd8 {[%clk 0:02:29]} 15. Bh2 {[%clk 0:02:19.1]}
15... Bd6 {[%clk 0:01:59.4]} 16. Ne5 {[%clk 0:02:14.7]} 16... Bb8 {[%clk
0:01:46.8]} 17. Nxd7 {[%clk 0:01:58.9]} 17... Bxh2+ {[%clk 0:01:44.3]} 18. Kxh2
{[%clk 0:01:59.7]} 18... Rxd7 {[%clk 0:01:44.7]} 19. Nf3 {[%clk 0:01:58.8]}
19... Ne4 {[%clk 0:01:45.7]} 20. Re2 {[%clk 0:01:58.7]} 20... Qb5 {[%clk
0:01:43.4]} 21. Qe1 {[%clk 0:01:57.7]} 21... Rdc7 {[%clk 0:01:42.6]} 22. Ne5
{[%clk 0:01:53]} 22... Qe8 {[%clk 0:01:32.6]} 23. Rd1 {[%clk 0:01:51.6]} 23...
b5 {[%clk 0:01:29.2]} 24. f3 {[%clk 0:01:42.9]} 24... Nd6 {[%clk 0:01:29.2]} 25.
dxc5 {[%clk 0:01:19.4]} 25... Rxc5 {[%clk 0:01:28.8]} 26. e4 {[%clk 0:01:20.6]}
26... dxe4 {[%clk 0:00:56.7]} 27. Rxd6 {[%clk 0:01:10.9]} 27... Rxe5 {[%clk
0:00:57.2]} 28. Qd2 {[%clk 0:00:55]} 28... e3 {[%clk 0:00:44.4]} 29. Qd4 {[%clk
0:00:54.5]} 29... Rec5 {[%clk 0:00:40.9]} 30. Rxe3 {[%clk 0:00:53.5]} 30... Qe7
{[%clk 0:00:36.8]} 31. Rd7 {[%clk 0:00:52.5]} 31... Qg5 {[%clk 0:00:37.7]} 32.
Rxa7 {[%clk 0:00:38.5]} 32... b4 {[%clk 0:00:32]} 33. f4 {[%clk 0:00:36.5]}
33... Qh4 {[%clk 0:00:19.7]} 34. Rg3 {[%clk 0:00:36]} 34... e5 {[%clk
0:00:16.8]} 35. fxe5 {[%clk 0:00:36.8]} 35... Qxd4 {[%clk 0:00:10.9]} 36. cxd4
{[%clk 0:00:37.8]} 36... Rd5 {[%clk 0:00:12.5]} 37. e6 {[%clk 0:00:36.6]} 37...
Rf8 {[%clk 0:00:10.3]} 38. Rg4 {[%clk 0:00:27]} 38... h5 {[%clk 0:00:10.6]} 39.
exf7+ {[%clk 0:00:23.4]} 39... Rxf7 {[%clk 0:00:12.5]} 40. Rxf7 {[%clk
0:00:19.3]} 40... hxg4 {[%clk 0:00:13.8]} 41. Rf4 {[%clk 0:00:20.1]} 41... gxh3
{[%clk 0:00:15.4]} 42. Kxh3 {[%clk 0:00:21.5]} 42... Ra5 {[%clk 0:00:16.9]} 43.
d5 {[%clk 0:00:22.7]} 43... b3 {[%clk 0:00:17.8]} 44. a3 {[%clk 0:00:17.4]}
44... Rxd5 {[%clk 0:00:19.1]} 45. Rb4 {[%clk 0:00:18.5]} 45... Rd3+ {[%clk
0:00:19.7]} 46. Kg4 {[%clk 0:00:19.4]} 46... Kf7 {[%clk 0:00:19.9]} 47. Kf4
{[%clk 0:00:18.8]} 47... Ke6 {[%clk 0:00:20.4]} 48. g4 {[%clk 0:00:19.8]} 48...
Kf6 {[%clk 0:00:21.2]} 49. Rb6+ {[%clk 0:00:20.6]} 49... Kf7 {[%clk 0:00:22.1]}
50. g5 {[%clk 0:00:19.9]} 50... Ke7 {[%clk 0:00:17.1]} 51. Kf5 {[%clk
0:00:19.8]} 51... Rg3 {[%clk 0:00:13.6]} 52. Kg6 {[%clk 0:00:20.3]} 52... Kd7
{[%clk 0:00:13.7]} 53. a4 {[%clk 0:00:21.1]} 53... Kc7 {[%clk 0:00:14.9]} 54.
Rb5 {[%clk 0:00:22.1]} 54... Kc6 {[%clk 0:00:16]} 55. Kxg7 {[%clk 0:00:18.5]}
55... Rg2 {[%clk 0:00:17.3]} 56. g6 {[%clk 0:00:18.7]} 56... Rxb2 {[%clk
0:00:18.1]} 57. Rb8 {[%clk 0:00:17.8]} 57... Kd7 {[%clk 0:00:17.6]} 58. a5
{[%clk 0:00:18.1]} 58... Ke7 {[%clk 0:00:17.1]} 59. a6 {[%clk 0:00:19.3]} 59...
Ra2 {[%clk 0:00:18.3]} 60. Rxb3 {[%clk 0:00:20]} 60... Rxa6 {[%clk 0:00:19.7]}
61. Re3+ {[%clk 0:00:21]} 61... Kd6 {[%clk 0:00:16.8]} 62. Kf7 {[%clk
0:00:21.9]} 62... Ra7+ {[%clk 0:00:17.5]} 63. Kf6 {[%clk 0:00:22.6]} 63... Ra2
{[%clk 0:00:18.1]} 64. Rd3+ {[%clk 0:00:23.6]} 64... Kc6 {[%clk 0:00:18.8]} 65.
g7 {[%clk 0:00:23.9]} 65... Rg2 {[%clk 0:00:19]} 66. Rd4 {[%clk 0:00:23.5]}
66... Rf2+ {[%clk 0:00:18.2]} 67. Kg5 {[%clk 0:00:22.6]} 67... Rg2+ {[%clk
0:00:19]} 68. Rg4 {[%clk 0:00:23.5]} 1-0

[Event "*** Titled Tuesday Blitz"]
[Site "Chess.com"]
[Date "2019.01.01"]
[Round "4"]
[White "TheBigBadChessDad"]
[Black "VNeimer"]
[Result "1/2-1/2"]
[WhiteElo "2288"]
[BlackElo "2381"]
[TimeControl "180+2"]
[EndTime "13:57:22 PST"]
[Termination "Game drawn by stalemate"]

1. d4 {[%clk 0:03:01.9]} 1... Nf6 {[%clk 0:03:00.7]} 2. Nf3 {[%clk 0:03:01.5]}
2... b6 {[%clk 0:03:01.6]} 3. Bf4 {[%clk 0:03:00.3]} 3... Bb7 {[%clk 0:03:02.5]}
4. e3 {[%clk 0:03:01.6]} 4... g6 {[%clk 0:03:03.9]} 5. h3 {[%clk 0:03:01.6]}
5... Bg7 {[%clk 0:03:05.8]} 6. c4 {[%clk 0:02:59.9]} 6... O-O {[%clk 0:03:07.7]}
7. Nc3 {[%clk 0:03:01]} 7... Ne4 {[%clk 0:03:06.8]} 8. Nxe4 {[%clk 0:02:59.2]}
8... Bxe4 {[%clk 0:03:08.7]} 9. Bd3 {[%clk 0:03:00.1]} 9... Bxd3 {[%clk
0:03:03.7]} 10. Qxd3 {[%clk 0:03:01.2]} 10... d6 {[%clk 0:03:05.1]} 11. O-O
{[%clk 0:02:56.7]} 11... c5 {[%clk 0:03:05.4]} 12. Rad1 {[%clk 0:02:50.8]} 12...
cxd4 {[%clk 0:03:04]} 13. exd4 {[%clk 0:02:50.3]} 13... Nc6 {[%clk 0:03:00.4]}
14. b3 {[%clk 0:02:44.7]} 14... Rc8 {[%clk 0:02:59.9]} 15. d5 {[%clk 0:02:43.9]}
15... Na5 {[%clk 0:02:58.3]} 16. Rfe1 {[%clk 0:02:41.6]} 16... Re8 {[%clk
0:02:58.7]} 17. Nd4 {[%clk 0:02:38.8]} 17... Qd7 {[%clk 0:02:56.3]} 18. Re3
{[%clk 0:02:33.3]} 18... Bf6 {[%clk 0:02:44.1]} 19. Rde1 {[%clk 0:02:32.5]}
19... a6 {[%clk 0:02:44.1]} 20. a4 {[%clk 0:02:28]} 20... Nb7 {[%clk 0:02:34.5]}
21. Nc6 {[%clk 0:02:11.9]} 21... Nc5 {[%clk 0:02:33.4]} 22. Qd2 {[%clk
0:02:08.5]} 22... Rxc6 {[%clk 0:02:33.4]} 23. dxc6 {[%clk 0:02:09.1]} 23... Qxc6
{[%clk 0:02:35.3]} 24. Bh6 {[%clk 0:01:41.2]} 24... b5 {[%clk 0:02:26.4]} 25.
axb5 {[%clk 0:01:38.3]} 25... axb5 {[%clk 0:02:28.3]} 26. cxb5 {[%clk
0:01:26.4]} 26... Qxb5 {[%clk 0:02:30.2]} 27. Qxd6 {[%clk 0:01:03.6]} 27... Ne6
{[%clk 0:01:52.5]} 28. Qd3 {[%clk 0:00:29.4]} 28... Qh5 {[%clk 0:01:48.4]} 29.
Rxe6 {[%clk 0:00:24.3]} 29... fxe6 {[%clk 0:01:49.1]} 30. Qe3 {[%clk 0:00:21.5]}
30... Kh8 {[%clk 0:01:45]} 31. Bf4 {[%clk 0:00:20.9]} 31... Qf5 {[%clk 0:01:38]}
32. g4 {[%clk 0:00:15.9]} 32... Qd5 {[%clk 0:01:15.9]} 33. Qxe6 {[%clk 0:00:17]}
33... Qxe6 {[%clk 0:01:17]} 34. Rxe6 {[%clk 0:00:18.6]} 34... Kg7 {[%clk
0:01:17.9]} 35. Rb6 {[%clk 0:00:16.3]} 35... Rc8 {[%clk 0:01:15.9]} 36. g5
{[%clk 0:00:14.7]} 36... Bd4 {[%clk 0:01:14.9]} 37. Rb7 {[%clk 0:00:15.4]} 37...
Rc2 {[%clk 0:01:14.3]} 38. Bg3 {[%clk 0:00:12.3]} 38... Kf7 {[%clk 0:01:14.8]}
39. Kg2 {[%clk 0:00:13.1]} 39... Rb2 {[%clk 0:01:12]} 40. b4 {[%clk 0:00:13.3]}
40... Ke6 {[%clk 0:01:11.4]} 41. b5 {[%clk 0:00:14.6]} 41... Kd5 {[%clk
0:01:12.5]} 42. Rxe7 {[%clk 0:00:12.7]} 42... Rxb5 {[%clk 0:01:12.9]} 43. Rxh7
{[%clk 0:00:13.8]} 43... Ke6 {[%clk 0:01:13.3]} 44. h4 {[%clk 0:00:12]} 44...
Rb2 {[%clk 0:01:11.5]} 45. Rc7 {[%clk 0:00:10.4]} 45... Rd2 {[%clk 0:01:06.6]}
46. Rb7 {[%clk 0:00:07.6]} 46... Kf5 {[%clk 0:01:05.8]} 47. Rb4 {[%clk
0:00:06.2]} 47... Ke6 {[%clk 0:01:06]} 48. Ra4 {[%clk 0:00:06.8]} 48... Kf5
{[%clk 0:01:07.2]} 49. Ra6 {[%clk 0:00:08]} 49... Rd3 {[%clk 0:01:06.1]} 50. Ra2
{[%clk 0:00:07.3]} 50... Ke6 {[%clk 0:01:07.2]} 51. Re2+ {[%clk 0:00:08.5]}
51... Kf5 {[%clk 0:01:08.3]} 52. Rc2 {[%clk 0:00:08.7]} 52... Ke6 {[%clk
0:01:09.3]} 53. Rc6+ {[%clk 0:00:09.6]} 53... Kf5 {[%clk 0:01:10.6]} 54. Rc7
{[%clk 0:00:10.7]} 54... Ke6 {[%clk 0:01:11.6]} 55. Rc8 {[%clk 0:00:10.8]} 55...
Kf5 {[%clk 0:01:12.9]} 56. Rf8+ {[%clk 0:00:11]} 56... Ke6 {[%clk 0:01:14.2]}
57. Rf3 {[%clk 0:00:12.2]} 57... Rd2 {[%clk 0:01:15]} 58. Bf4 {[%clk 0:00:12.3]}
58... Rc2 {[%clk 0:01:12.1]} 59. Be3 {[%clk 0:00:13.4]} 59... Be5 {[%clk
0:01:12.6]} 60. Bf4 {[%clk 0:00:14.8]} 60... Bd4 {[%clk 0:01:13.6]} 61. Kg3
{[%clk 0:00:15.1]} 61... Ra2 {[%clk 0:01:09.1]} 62. Be3 {[%clk 0:00:13]} 62...
Be5+ {[%clk 0:01:10.3]} 63. Kg2 {[%clk 0:00:13.8]} 63... Bd6 {[%clk 0:01:10.3]}
64. Rh3 {[%clk 0:00:13.9]} 64... Kf5 {[%clk 0:01:09.7]} 65. h5 {[%clk
0:00:14.3]} 65... gxh5 {[%clk 0:01:09.3]} 66. Rxh5 {[%clk 0:00:16.2]} 66... Kg4
{[%clk 0:01:06.4]} 67. Rh6 {[%clk 0:00:16.1]} 67... Bf8 {[%clk 0:01:05.4]} 68.
Rf6 {[%clk 0:00:16.5]} 68... Bg7 {[%clk 0:01:05.6]} 69. Rf4+ {[%clk 0:00:17.6]}
69... Kh5 {[%clk 0:01:05.9]} 70. Rf7 {[%clk 0:00:17.1]} 70... Kg6 {[%clk
0:01:06.5]} 71. Rb7 {[%clk 0:00:17.6]} 71... Be5 {[%clk 0:01:05.5]} 72. Ra7
{[%clk 0:00:17.9]} 72... Rxa7 {[%clk 0:01:04.2]} 73. Bxa7 {[%clk 0:00:18.6]}
73... Kxg5 {[%clk 0:01:06.1]} 74. Kf3 {[%clk 0:00:19.6]} 74... Kf5 {[%clk
0:01:07.1]} 75. Be3 {[%clk 0:00:20.9]} 75... Bd6 {[%clk 0:01:07.6]} 76. Bd4
{[%clk 0:00:22.2]} 76... Bc7 {[%clk 0:01:07]} 77. Ke3 {[%clk 0:00:22.1]} 77...
Bd8 {[%clk 0:01:07.2]} 78. f3 {[%clk 0:00:21.3]} 78... Bg5+ {[%clk 0:01:07.5]}
79. Ke2 {[%clk 0:00:21.4]} 79... Bf4 {[%clk 0:01:08.7]} 80. Be3 {[%clk
0:00:22.4]} 80... Bxe3 {[%clk 0:01:09.3]} 81. Kxe3 {[%clk 0:00:23.4]} 81... Ke5
{[%clk 0:01:11.2]} 82. f4+ {[%clk 0:00:24.4]} 82... Kf5 {[%clk 0:01:13.1]} 83.
Kf3 {[%clk 0:00:26.1]} 83... Kf6 {[%clk 0:01:14.4]} 84. Ke4 {[%clk 0:00:28]}
84... Ke6 {[%clk 0:01:15.7]} 85. f5+ {[%clk 0:00:29.4]} 85... Kf6 {[%clk
0:01:17.6]} 86. Kf4 {[%clk 0:00:31.2]} 86... Kf7 {[%clk 0:01:18.5]} 87. Ke5
{[%clk 0:00:33.1]} 87... Ke7 {[%clk 0:01:19.7]} 88. Kf4 {[%clk 0:00:34]} 88...
Kf6 {[%clk 0:01:20.9]} 89. Kg4 {[%clk 0:00:35.9]} 89... Kf7 {[%clk 0:01:22.1]}
90. Kf4 {[%clk 0:00:37.8]} 90... Kf6 {[%clk 0:01:23.4]} 91. Ke4 {[%clk
0:00:39.5]} 91... Kf7 {[%clk 0:01:24.8]} 92. Ke5 {[%clk 0:00:41.4]} 92... Ke7
{[%clk 0:01:26.1]} 93. f6+ {[%clk 0:00:43.3]} 93... Kf7 {[%clk 0:01:27.4]} 94.
Kf5 {[%clk 0:00:44.3]} 94... Kf8 {[%clk 0:01:23.8]} 95. Kg5 {[%clk 0:00:45.3]}
95... Kf7 {[%clk 0:01:25.2]} 96. Kf5 {[%clk 0:00:46.1]} 96... Kf8 {[%clk
0:01:26.7]} 97. Ke6 {[%clk 0:00:47.6]} 97... Ke8 {[%clk 0:01:28]} 98. Ke5 {[%clk
0:00:49.1]} 98... Kf7 {[%clk 0:01:28.9]} 99. Kf5 {[%clk 0:00:50.6]} 99... Kf8
{[%clk 0:01:30.3]} 100. Kg6 {[%clk 0:00:52]} 100... Kg8 {[%clk 0:01:31.3]} 101.
f7+ {[%clk 0:00:52.1]} 101... Kf8 {[%clk 0:01:32.5]} 102. Kf6 {[%clk 0:00:53.7]}
1/2-1/2

[Event "*** Titled Tuesday Blitz"]
[Site "Chess.com"]
[Date "2019.01.01"]
[Round "4"]
[White "Opening_Prep"]
[Black "andrzej"]
[Result "1-0"]
[WhiteElo "2403"]
[BlackElo "2265"]
[TimeControl "180+2"]
[EndTime "13:57:32 PST"]
[Termination "Opening_Prep won by checkmate"]

1. d4 {[%clk 0:03:01.9]} 1... Nf6 {[%clk 0:02:59.5]} 2. Nc3 {[%clk 0:02:59.7]}
2... d5 {[%clk 0:02:56.8]} 3. Bf4 {[%clk 0:02:59.3]} 3... Bf5 {[%clk 0:02:54.8]}
4. e3 {[%clk 0:02:59.2]} 4... e6 {[%clk 0:02:46.3]} 5. Bd3 {[%clk 0:02:56.7]}
5... Bg6 {[%clk 0:02:46.6]} 6. Nge2 {[%clk 0:02:56.8]} 6... Bd6 {[%clk 0:02:47]}
7. O-O {[%clk 0:02:56.7]} 7... c6 {[%clk 0:02:40.5]} 8. a3 {[%clk 0:02:35.7]}
8... Qe7 {[%clk 0:02:40.9]} 9. Bxd6 {[%clk 0:02:08.2]} 9... Qxd6 {[%clk
0:02:41.6]} 10. Nf4 {[%clk 0:02:10.1]} 10... Nbd7 {[%clk 0:02:36.7]} 11. Nce2
{[%clk 0:02:06.9]} 11... e5 {[%clk 0:02:34.4]} 12. dxe5 {[%clk 0:02:04.5]} 12...
Nxe5 {[%clk 0:02:35]} 13. Ng3 {[%clk 0:01:58.9]} 13... O-O {[%clk 0:02:30]} 14.
Qd2 {[%clk 0:01:32]} 14... Rad8 {[%clk 0:02:25.4]} 15. Rfd1 {[%clk 0:01:11.8]}
15... Qc7 {[%clk 0:02:19]} 16. Nxg6 {[%clk 0:01:09.2]} 16... hxg6 {[%clk
0:02:19.7]} 17. c3 {[%clk 0:01:08]} 17... Rfe8 {[%clk 0:02:12.6]} 18. Qc2 {[%clk
0:01:05.7]} 18... Nfg4 {[%clk 0:02:07.2]} 19. Bf1 {[%clk 0:00:58]} 19... Qe7
{[%clk 0:02:00.5]} 20. h3 {[%clk 0:00:56.5]} 20... Nf6 {[%clk 0:01:31.4]} 21.
Rd2 {[%clk 0:00:51.7]} 21... b5 {[%clk 0:01:07.3]} 22. Rad1 {[%clk 0:00:43]}
22... a6 {[%clk 0:00:56]} 23. e4 {[%clk 0:00:28.1]} 23... Rc8 {[%clk 0:00:30]}
24. Qb1 {[%clk 0:00:17.7]} 24... dxe4 {[%clk 0:00:26.3]} 25. Nxe4 {[%clk
0:00:16.6]} 25... Nxe4 {[%clk 0:00:27.3]} 26. Qxe4 {[%clk 0:00:17.3]} 26... Qf6
{[%clk 0:00:28.7]} 27. Qc2 {[%clk 0:00:16.1]} 27... Rcd8 {[%clk 0:00:20.1]} 28.
a4 {[%clk 0:00:16]} 28... Rxd2 {[%clk 0:00:20]} 29. Rxd2 {[%clk 0:00:17.2]}
29... Rd8 {[%clk 0:00:20.6]} 30. axb5 {[%clk 0:00:17]} 30... axb5 {[%clk
0:00:21.5]} 31. Rxd8+ {[%clk 0:00:18.1]} 31... Qxd8 {[%clk 0:00:22.7]} 32. Qe4
{[%clk 0:00:20]} 32... Qd6 {[%clk 0:00:23.4]} 33. f4 {[%clk 0:00:20.6]} 33...
Nd7 {[%clk 0:00:20.1]} 34. Be2 {[%clk 0:00:20.2]} 34... Nf6 {[%clk 0:00:20.1]}
35. Qe3 {[%clk 0:00:16.1]} 35... Kh7 {[%clk 0:00:18.7]} 36. g3 {[%clk
0:00:16.7]} 36... Nd5 {[%clk 0:00:18.9]} 37. Qd4 {[%clk 0:00:16.6]} 37... Qe6
{[%clk 0:00:19.3]} 38. Bf1 {[%clk 0:00:16.1]} 38... Qe1 {[%clk 0:00:18.6]} 39.
Qf2 {[%clk 0:00:16.3]} 39... Qb1 {[%clk 0:00:14.2]} 40. Kg2 {[%clk 0:00:11.1]}
40... Qe4+ {[%clk 0:00:13.5]} 41. Kg1 {[%clk 0:00:12.2]} 41... Ne3 {[%clk
0:00:13.6]} 42. Be2 {[%clk 0:00:09.2]} 42... Qb1+ {[%clk 0:00:10.4]} 43. Kh2
{[%clk 0:00:10.6]} 43... Qe4 {[%clk 0:00:10.8]} 44. Bf3 {[%clk 0:00:11.2]} 44...
Qe6 {[%clk 0:00:11.8]} 45. h4 {[%clk 0:00:11.2]} 45... f5 {[%clk 0:00:12.2]} 46.
Qe2 {[%clk 0:00:11.1]} 46... Kg8 {[%clk 0:00:09]} 47. Kg1 {[%clk 0:00:12.5]}
47... Kf7 {[%clk 0:00:09.3]} 48. Bxc6 {[%clk 0:00:11.8]} 48... Qxc6 {[%clk
0:00:05.1]} 49. Qxe3 {[%clk 0:00:13]} 49... Qc4 {[%clk 0:00:06.3]} 50. Qa7+
{[%clk 0:00:13.7]} 50... Kf6 {[%clk 0:00:07.6]} 51. Qd4+ {[%clk 0:00:13.3]}
51... Qxd4+ {[%clk 0:00:06.6]} 52. cxd4 {[%clk 0:00:15.2]} 52... Ke6 {[%clk
0:00:08.2]} 53. Kf2 {[%clk 0:00:16.2]} 53... Kd5 {[%clk 0:00:09.9]} 54. Ke3
{[%clk 0:00:17.1]} 54... Kc4 {[%clk 0:00:11.6]} 55. b3+ {[%clk 0:00:18.3]} 55...
Kxb3 {[%clk 0:00:10.6]} 56. d5 {[%clk 0:00:19.6]} 56... Kc2 {[%clk 0:00:10.4]}
57. d6 {[%clk 0:00:20.9]} 57... b4 {[%clk 0:00:12.2]} 58. d7 {[%clk 0:00:22.4]}
58... b3 {[%clk 0:00:14.1]} 59. d8=Q {[%clk 0:00:23.8]} 59... b2 {[%clk
0:00:15.7]} 60. Qc7+ {[%clk 0:00:20.3]} 60... Kb3 {[%clk 0:00:16.6]} 61. Qb6+
{[%clk 0:00:20.9]} 61... Kc2 {[%clk 0:00:16.2]} 62. Qc5+ {[%clk 0:00:21.4]}
62... Kd1 {[%clk 0:00:17]} 63. Qd4+ {[%clk 0:00:20.2]} 63... Kc1 {[%clk
0:00:18.2]} 64. Qd2+ {[%clk 0:00:21]} 64... Kb1 {[%clk 0:00:19]} 65. Kd3 {[%clk
0:00:21.9]} 65... Ka1 {[%clk 0:00:19.5]} 66. Qa5+ {[%clk 0:00:22.6]} 66... Kb1
{[%clk 0:00:20.6]} 67. Kc3 {[%clk 0:00:21.6]} 67... Kc1 {[%clk 0:00:21.8]} 68.
Qa3 {[%clk 0:00:22.1]} 68... Kd1 {[%clk 0:00:23]} 69. Qxb2 {[%clk 0:00:22.9]}
69... Ke1 {[%clk 0:00:24.2]} 70. Kd3 {[%clk 0:00:24.4]} 70... Kf1 {[%clk
0:00:25.4]} 71. Ke3 {[%clk 0:00:25.9]} 71... Kg1 {[%clk 0:00:27.3]} 72. Kf3
{[%clk 0:00:27.2]} 72... Kh1 {[%clk 0:00:29.2]} 73. Qg2# {[%clk 0:00:28]} 1-0

[Event "*** Titled Tuesday Blitz"]
[Site "Chess.com"]
[Date "2019.01.01"]
[Round "4"]
[White "vpsetter"]
[Black "IMAghasiyevKamal"]
[Result "1-0"]
[WhiteElo "2579"]
[BlackElo "2532"]
[TimeControl "180+2"]
[EndTime "13:57:35 PST"]
[Termination "vpsetter won by resignation"]

1. e4 {[%clk 0:03:00.3]} 1... e5 {[%clk 0:03:00.4]} 2. Nf3 {[%clk 0:03:00.5]}
2... Nc6 {[%clk 0:03:01.3]} 3. Bb5 {[%clk 0:03:00.6]} 3... a6 {[%clk 0:03:02]}
4. Ba4 {[%clk 0:03:01]} 4... Nf6 {[%clk 0:03:02.3]} 5. O-O {[%clk 0:03:01.3]}
5... Be7 {[%clk 0:03:03.3]} 6. Re1 {[%clk 0:03:01.9]} 6... b5 {[%clk 0:03:03.3]}
7. Bb3 {[%clk 0:03:02.5]} 7... d6 {[%clk 0:03:04.4]} 8. c3 {[%clk 0:03:02.5]}
8... O-O {[%clk 0:03:04.4]} 9. h3 {[%clk 0:03:02.9]} 9... Nb8 {[%clk 0:03:05.2]}
10. d4 {[%clk 0:03:03.5]} 10... Nbd7 {[%clk 0:03:05.9]} 11. a4 {[%clk
0:03:02.5]} 11... Bb7 {[%clk 0:03:02.1]} 12. Nbd2 {[%clk 0:03:02.2]} 12... c5
{[%clk 0:03:02.8]} 13. d5 {[%clk 0:02:54.5]} 13... c4 {[%clk 0:03:02.7]} 14. Bc2
{[%clk 0:02:55.2]} 14... Nc5 {[%clk 0:03:01.3]} 15. a5 {[%clk 0:02:51.9]} 15...
Rb8 {[%clk 0:02:49.7]} 16. Nf1 {[%clk 0:02:52.5]} 16... Bc8 {[%clk 0:02:50.6]}
17. N3h2 {[%clk 0:02:48.9]} 17... b4 {[%clk 0:02:47.9]} 18. cxb4 {[%clk
0:02:49.3]} 18... Rxb4 {[%clk 0:02:48.6]} 19. Ng3 {[%clk 0:02:49.1]} 19... Nb3
{[%clk 0:02:48.9]} 20. Bxb3 {[%clk 0:02:47.3]} 20... Rxb3 {[%clk 0:02:49.4]} 21.
Qc2 {[%clk 0:02:44.3]} 21... Qc7 {[%clk 0:02:46.1]} 22. Ra4 {[%clk 0:02:41.3]}
22... Rb5 {[%clk 0:02:38]} 23. Bd2 {[%clk 0:02:39.7]} 23... Qb7 {[%clk
0:02:34.2]} 24. Rb1 {[%clk 0:02:28.3]} 24... Bd7 {[%clk 0:02:21.3]} 25. Rxc4
{[%clk 0:02:28.6]} 25... Rc8 {[%clk 0:02:21.4]} 26. Rxc8+ {[%clk 0:02:16.8]}
26... Bxc8 {[%clk 0:02:22.5]} 27. b4 {[%clk 0:02:06.7]} 27... Bd7 {[%clk
0:02:21.1]} 28. Rc1 {[%clk 0:02:07]} 28... Qa7 {[%clk 0:02:13.1]} 29. Nf3 {[%clk
0:01:58.7]} 29... Rb8 {[%clk 0:02:08.8]} 30. Qd3 {[%clk 0:01:24.5]} 30... h6
{[%clk 0:02:03.1]} 31. Ne1 {[%clk 0:01:06.9]} 31... Qb7 {[%clk 0:01:47.9]} 32.
Qc3 {[%clk 0:01:02.6]} 32... Rc8 {[%clk 0:01:45.9]} 33. Qb2 {[%clk 0:01:03]}
33... Rxc1 {[%clk 0:01:36.6]} 34. Qxc1 {[%clk 0:01:03.2]} 34... Bd8 {[%clk
0:01:30.3]} 35. Qc3 {[%clk 0:01:02.1]} 35... Qb5 {[%clk 0:01:21]} 36. Nc2 {[%clk
0:00:56.7]} 36... Qa4 {[%clk 0:01:13]} 37. Ne3 {[%clk 0:00:55.8]} 37... g6
{[%clk 0:01:08.5]} 38. Kh2 {[%clk 0:00:50.8]} 38... Ne8 {[%clk 0:01:07.3]} 39.
Nc4 {[%clk 0:00:49.5]} 39... h5 {[%clk 0:01:03.1]} 40. Be3 {[%clk 0:00:43]}
40... h4 {[%clk 0:00:56.6]} 41. Nf1 {[%clk 0:00:38.6]} 41... Bb5 {[%clk
0:00:54.8]} 42. Nfd2 {[%clk 0:00:28.7]} 42... Qd1 {[%clk 0:00:50.4]} 43. Na3
{[%clk 0:00:27.1]} 43... Bd7 {[%clk 0:00:48]} 44. b5 {[%clk 0:00:26]} 44... axb5
{[%clk 0:00:47.1]} 45. Nb3 {[%clk 0:00:23.5]} 45... Qe2 {[%clk 0:00:36.7]} 46.
Qb4 {[%clk 0:00:15.4]} 46... Bc8 {[%clk 0:00:20]} 47. Qxb5 {[%clk 0:00:13.8]}
47... Qxb5 {[%clk 0:00:20.4]} 48. Nxb5 {[%clk 0:00:14.9]} 48... Kf8 {[%clk
0:00:21.6]} 49. Na7 {[%clk 0:00:14.5]} 49... Bb7 {[%clk 0:00:22.3]} 50. Nc6
{[%clk 0:00:14.2]} 50... Bf6 {[%clk 0:00:21.6]} 51. Nb4 {[%clk 0:00:14.1]} 51...
Nc7 {[%clk 0:00:20.9]} 52. Bb6 {[%clk 0:00:14.4]} 52... Na6 {[%clk 0:00:22]} 53.
Nxa6 {[%clk 0:00:15]} 53... Bxa6 {[%clk 0:00:23.3]} 54. Nc1 {[%clk 0:00:15.6]}
54... Ke7 {[%clk 0:00:24]} 55. Na2 {[%clk 0:00:16.6]} 55... Kd7 {[%clk
0:00:25.5]} 56. Nb4 {[%clk 0:00:17.6]} 56... Bc8 {[%clk 0:00:24.9]} 57. a6
{[%clk 0:00:18.4]} 57... Bg5 {[%clk 0:00:26.2]} 58. a7 {[%clk 0:00:17.8]} 58...
Bb7 {[%clk 0:00:27.6]} 59. Nc6 {[%clk 0:00:15.5]} 59... f5 {[%clk 0:00:27.8]}
60. f3 {[%clk 0:00:15.6]} 60... Ba8 {[%clk 0:00:26.1]} 61. Na5 {[%clk
0:00:10.1]} 61... Bd2 {[%clk 0:00:24.2]} 62. Nc4 {[%clk 0:00:11.1]} 62... Bb4
{[%clk 0:00:22.8]} 63. Bf2 {[%clk 0:00:11.2]} 63... Kc7 {[%clk 0:00:21]} 64. Nb6
{[%clk 0:00:12.1]} 64... Kb7 {[%clk 0:00:22.5]} 65. Nxa8 {[%clk 0:00:10.7]}
65... Kxa8 {[%clk 0:00:23.8]} 66. Kg1 {[%clk 0:00:10.7]} 66... fxe4 {[%clk
0:00:21.5]} 67. fxe4 {[%clk 0:00:11.3]} 67... Ba5 {[%clk 0:00:20.9]} 68. Kf1
{[%clk 0:00:12]} 68... Bd8 {[%clk 0:00:21.4]} 69. Ke2 {[%clk 0:00:13.2]} 69...
Kb7 {[%clk 0:00:22.3]} 70. Kf3 {[%clk 0:00:14.1]} 70... g5 {[%clk 0:00:21.8]}
71. Kg4 {[%clk 0:00:15.3]} 1-0